bitfinex-derivatives/quotes_BTCF0:USTF0_20260207
["timestamp","ask_amount","ask_price","bid_price","bid_amount"]
[1770490456673,0.01186993,69608.0,69585.0,0.014383]
[1770490457075,0.014373,69636.0,69566.0,0.40241348]
[1770490457076,0.01179665,69616.0,69569.0,0.071934]
[1770490457474,0.01179665,69616.0,69589.0,0.014382]
[1770490457778,0.01179665,69616.0,69592.0,0.014381]
[1770490460282,0.01179665,69616.0,69596.0,0.014381]
[1770490461285,0.01141922,69631.0,69606.0,0.00074231]
[1770490462186,0.01141922,69631.0,69609.0,0.00074231]
[1770490462396,0.014373,69636.0,69611.0,0.00074231]
[1770490462581,0.01144643,69639.0,69612.0,0.01503768]
[1770490462988,0.01144643,69637.0,69612.0,0.01503768]
[1770490463286,0.014368,69659.0,69595.0,0.014381]
[1770490463287,0.014371,69643.0,69618.0,0.00066068]
[1770490463588,0.01144643,69646.0,69629.0,0.014374]
[1770490464186,0.01144643,69646.0,69622.0,0.00066068]
[1770490464492,0.01144643,69646.0,69626.0,0.01483021]
[1770490464894,0.01144643,69646.0,69626.0,0.00045521]
[1770490467388,0.01144643,69646.0,69626.0,0.01483021]
[1770490468988,0.01144643,69646.0,69627.0,0.00113508]
[1770490469293,0.01144643,69646.0,69627.0,0.01550908]
[1770490470396,0.01136073,69660.0,69634.0,0.014373]
[1770490470695,0.01136073,69660.0,69642.0,0.014371]
[1770490470992,0.01136073,69660.0,69641.0,0.00099339]
[1770490471196,0.01136073,69660.0,69638.0,0.014372]
[1770490471587,0.01136073,69660.0,69634.0,0.014373]
[1770490471793,0.01136073,69660.0,69637.0,0.014372]
[1770490476488,0.01183712,69658.0,69610.0,0.15887466]
[1770490476699,0.01183712,69648.0,69612.0,0.014377]
[1770490476897,0.01183712,69648.0,69626.0,0.014374]
[1770490477293,0.01437,69647.0,69622.0,0.014375]
[1770490477491,0.01183712,69646.0,69622.0,0.014375]
[1770490477692,0.01183712,69636.0,69598.0,0.11319114]
[1770490477897,0.01183712,69636.0,69619.0,0.014376]
[1770490478097,0.01183712,69636.0,69599.0,0.01438]
[1770490478290,0.01183712,69636.0,69619.0,0.014376]
[1770490478492,0.01185129,69644.0,69600.0,0.071902]
[1770490478797,0.01185129,69653.0,69632.0,0.014373]
[1770490479194,0.02622029,69653.0,69631.0,0.014374]
[1770490479398,0.02622029,69653.0,69615.0,0.014377]
[1770490479598,0.02622029,69653.0,69628.0,0.014374]
[1770490479894,0.01185129,69652.0,69628.0,0.014374]
[1770490480092,0.01185129,69652.0,69610.0,0.014378]
[1770490480093,0.01185129,69652.0,69632.0,0.014373]
[1770490481098,0.01185129,69652.0,69634.0,0.014373]
[1770490481494,0.01185129,69652.0,69620.0,0.014376]
[1770490481801,0.01188595,69659.0,69621.0,0.014376]
[1770490483092,0.014368,69658.0,69621.0,0.014376]
[1770490483295,0.011832,69657.0,69621.0,0.014376]
[1770490483806,0.011832,69657.0,69634.0,0.014373]
[1770490484097,0.011832,69657.0,69638.0,0.014372]
[1770490484703,0.011832,69657.0,69634.0,0.014373]
[1770490484913,0.011832,69657.0,69622.0,0.014375]
[1770490485091,0.011832,69657.0,69637.0,0.014372]
[1770490485607,0.01183661,69664.0,69639.0,0.014372]
[1770490486606,0.01183661,69664.0,69642.0,0.014371]
[1770490487000,0.01183661,69664.0,69627.0,0.014374]
[1770490487501,0.01181874,69662.0,69615.0,0.071886]
[1770490488204,0.01181874,69662.0,69615.0,0.18507714]
[1770490488401,0.01178114,69648.0,69608.0,0.75365179]
[1770490488601,0.01178114,69646.0,69607.0,0.11319114]
[1770490488800,0.01178114,69644.0,69619.0,0.014376]
[1770490489001,0.01178114,69642.0,69619.0,0.014376]
[1770490489603,0.01178114,69642.0,69599.0,0.11319114]
[1770490490105,0.01178114,69642.0,69620.0,0.014376]
[1770490490507,0.01178114,69642.0,69601.0,0.11319114]
[1770490490695,0.01190459,69655.0,69634.0,0.014373]
[1770490493000,0.0120214,69654.0,69630.0,0.014374]
[1770490493197,0.0120214,69654.0,69616.0,0.11319114]
[1770490493400,0.0120214,69654.0,69630.0,0.014374]
[1770490494007,0.0120214,69654.0,69636.0,0.014372]
[1770490495106,0.0120214,69654.0,69619.0,0.014376]
[1770490495107,0.0120214,69654.0,69639.0,0.014372]
[1770490495808,0.01194695,69663.0,69639.0,0.014372]
[1770490496316,0.01194695,69661.0,69636.0,0.014373]
[1770490497414,0.01194695,69661.0,69620.0,0.11319114]
[1770490498216,0.01194695,69661.0,69637.0,0.014372]
[1770490500620,0.02634088,69658.0,69635.0,0.014373]
[1770490500812,0.01197288,69657.0,69621.0,0.11319114]
[1770490501014,0.01197288,69651.0,69629.0,0.014374]
[1770490502913,0.01188126,69650.0,69625.0,0.014375]
[1770490504214,0.01188126,69648.0,69621.0,0.014376]
[1770490504520,0.01193431,69644.0,69617.0,0.014376]
[1770490504720,0.01193431,69644.0,69620.0,0.014376]
[1770490507827,0.0107831,69629.0,69606.0,0.01110226]
[1770490508818,0.0107831,69627.0,69599.0,0.01128466]
[1770490509115,0.0251581,69623.0,69601.0,0.01128466]
[1770490509320,0.0107831,69623.0,69602.0,0.01438]
[1770490509516,0.0107831,69623.0,69602.0,0.02566466]
[1770490509714,0.0107831,69623.0,69606.0,0.014379]
[1770490510318,0.0107831,69623.0,69605.0,0.01128466]
[1770490511320,0.014374,69628.0,69605.0,0.01128466]
[1770490511727,0.01135831,69630.0,69606.0,0.0111579]
[1770490511928,0.02573131,69636.0,69610.0,0.0111579]
[1770490512126,0.01135831,69635.0,69610.0,0.0111579]
[1770490512424,0.01135831,69635.0,69612.0,0.0111579]
[1770490512622,0.014373,69634.0,69612.0,0.0111579]
[1770490513023,0.014374,69631.0,69612.0,0.0111579]
[1770490513526,0.01135831,69630.0,69612.0,0.0111579]
[1770490515327,0.01135831,69630.0,69607.0,0.014378]
[1770490516623,0.01135831,69630.0,69607.0,0.0255359]
[1770490516822,0.01135831,69628.0,69607.0,0.0111579]
[1770490519733,0.01135831,69624.0,69591.0,0.00298451]
[1770490520029,0.014371,69644.0,69591.0,0.00298451]
[1770490520030,0.01135831,69622.0,69591.0,0.00298451]
[1770490520430,0.01135831,69622.0,69600.0,0.01752227]
[1770490520632,0.01135831,69622.0,69602.0,0.01438]
[1770490520834,0.01135831,69622.0,69604.0,0.01752127]
[1770490521033,0.01135831,69630.0,69609.0,0.00314227]
[1770490521730,0.01135831,69630.0,69611.0,0.00314227]
[1770490522128,0.02603966,69635.0,69594.0,0.014381]
[1770490522333,0.01166666,69634.0,69595.0,0.014381]
[1770490522520,0.01166666,69634.0,69610.0,0.014378]
[1770490523736,0.01169997,69628.0,69589.0,0.014382]
[1770490524037,0.01169997,69628.0,69603.0,0.014379]
[1770490524435,0.01169997,69628.0,69606.0,8.908e-05]
[1770490526331,0.01169997,69628.0,69607.0,0.014378]
[1770490526526,0.01169997,69628.0,69607.0,0.0146815]
[1770490527230,0.01169997,69628.0,69608.0,0.0003035]
[1770490528640,0.01169997,69628.0,69607.0,0.014378]
[1770490529134,0.01169997,69628.0,69604.0,0.014379]
[1770490529135,0.01160948,69627.0,69604.0,0.014379]
[1770490529533,0.01160948,69627.0,69605.0,0.00017154]
[1770490529733,0.01160948,69627.0,69607.0,0.00017154]
[1770490529942,0.01160948,69627.0,69608.0,0.01454954]
[1770490530731,0.01160948,69627.0,69608.0,0.00017154]
[1770490535533,0.01160948,69627.0,69603.0,0.014379]
[1770490535731,0.01160948,69627.0,69605.0,0.014379]
[1770490536643,0.01160948,69627.0,69605.0,0.01510435]
[1770490536837,0.01160948,69627.0,69606.0,0.00072535]
[1770490537548,0.01142488,69615.0,69593.0,0.00072535]
[1770490538044,0.014377,69614.0,69593.0,0.00072535]
[1770490538244,0.01142488,69613.0,69593.0,0.00072535]
[1770490539633,0.01140331,69611.0,69589.0,0.014382]
[1770490539838,0.01140331,69611.0,69588.0,0.01517204]
[1770490540446,0.01140331,69611.0,69588.0,0.014382]
[1770490540943,0.01438,69599.0,69578.0,0.11350827]
[1770490541147,0.011195,69598.0,69570.0,0.014386]
[1770490541547,0.011195,69596.0,69568.0,0.014386]
[1770490541945,0.011195,69589.0,69567.0,0.01094064]
[1770490542251,0.011195,69581.0,69561.0,0.01094064]
[1770490542746,0.011195,69581.0,69558.0,0.0002]
[1770490542950,0.011195,69581.0,69556.0,0.014389]
[1770490542951,0.011195,69579.0,69556.0,0.01094064]
[1770490543141,0.014381,69598.0,69549.0,0.11350827]
[1770490543142,0.011195,69570.0,69549.0,0.01094064]
[1770490543447,0.011195,69570.0,69542.0,0.01094064]
[1770490543649,0.011195,69570.0,69543.0,0.014392]
[1770490544142,0.011195,69570.0,69546.0,0.014391]
[1770490544347,0.011195,69577.0,69557.0,0.01094064]
[1770490545148,0.014383,69585.0,69559.0,0.01094064]
[1770490545354,0.011195,69582.0,69559.0,0.01094064]
[1770490547348,0.011195,69582.0,69560.0,0.014388]
[1770490547549,0.011195,69582.0,69560.0,0.02532864]
[1770490547749,0.011195,69582.0,69561.0,0.01094064]
[1770490549050,0.011195,69582.0,69562.0,0.014388]
[1770490549451,0.011195,69582.0,69561.0,0.01094064]
[1770490549752,0.011195,69580.0,69554.0,0.01094064]
[1770490549943,0.011195,69580.0,69554.0,0.01114064]
[1770490551040,0.011195,69580.0,69554.0,0.01094064]
[1770490551245,0.011195,69580.0,69559.0,0.01094064]
[1770490551442,0.011195,69580.0,69561.0,0.01094064]
[1770490551645,0.011195,69580.0,69553.0,0.01094064]
[1770490551951,0.011195,69577.0,69548.0,0.014391]
[1770490552547,0.011195,69570.0,69546.0,0.01094064]
[1770490552745,0.011195,69570.0,69547.0,0.014391]
[1770490553350,0.011195,69570.0,69550.0,0.01439]
[1770490553740,0.011195,69578.0,69554.0,0.01094064]
[1770490554151,0.011195,69578.0,69560.0,0.01094064]
[1770490554557,0.011195,69578.0,69559.0,0.014388]
[1770490555657,0.011195,69578.0,69558.0,0.00567959]
[1770490557151,0.011195,69578.0,69554.0,0.014389]
[1770490557848,0.011195,69578.0,69554.0,0.01990519]
[1770490558049,0.011195,69576.0,69550.0,0.01439]
[1770490558253,0.014385,69577.0,69547.0,0.00571619]
[1770490558254,0.011195,69558.0,69547.0,0.0002]
[1770490558559,0.011195,69558.0,69511.0,0.21168182]
[1770490558560,0.011195,69557.0,69538.0,0.0002]
[1770490558753,0.011195,69557.0,69529.0,0.02004796]
[1770490558958,0.011195,69557.0,69530.0,0.00565296]
[1770490559964,0.011195,69557.0,69530.0,0.00585296]
[1770490560254,0.01439,69553.0,69530.0,0.0002]
[1770490560556,0.011195,69552.0,69530.0,0.0002]
[1770490560961,0.011195,69552.0,69527.0,0.014395]
[1770490561163,0.011195,69552.0,69524.0,0.0002]
[1770490561458,0.011195,69552.0,69526.0,0.014395]
[1770490561861,0.011195,69552.0,69527.0,0.00558213]
[1770490562058,0.011195,69552.0,69527.0,0.0002]
[1770490563260,0.011195,69552.0,69526.0,0.014395]
[1770490564456,0.011195,69552.0,69539.0,0.0002]
[1770490564655,0.011195,69552.0,69526.0,0.014395]
[1770490564856,0.011195,69552.0,69538.0,0.0002]
[1770490565159,0.011195,69552.0,69526.0,0.014395]
[1770490565360,0.011195,69552.0,69538.0,0.0002]
[1770490565555,0.011195,69552.0,69537.0,0.0002]
[1770490565755,0.011195,69552.0,69536.0,0.0002]
[1770490565958,0.011195,69552.0,69526.0,0.014395]
[1770490566159,0.01108858,69545.0,69513.0,0.014398]
[1770490566458,0.01108858,69544.0,69519.0,0.014397]
[1770490566654,0.01108858,69544.0,69495.0,0.11350827]
[1770490566655,0.01108858,69543.0,69501.0,0.00618812]
[1770490566965,0.01108858,69543.0,69477.0,0.072029]
[1770490566966,0.01108858,69533.0,69514.0,0.00618812]
[1770490567360,0.01108858,69533.0,69522.0,0.0002]
[1770490567556,0.01108858,69533.0,69523.0,0.0002]
[1770490569056,0.01168799,69544.0,69523.0,0.0002]
[1770490569254,0.014392,69543.0,69523.0,0.0002]
[1770490569462,0.02607999,69543.0,69523.0,0.0002]
[1770490569955,0.01168799,69542.0,69523.0,0.0002]
[1770490570765,0.014392,69541.0,69523.0,0.0002]
[1770490570967,0.01169052,69540.0,69523.0,0.0002]
[1770490571765,0.01169052,69540.0,69527.0,0.0002]
[1770490572059,0.01169052,69540.0,69511.0,0.00012842]
[1770490572266,0.01162385,69529.0,69505.0,0.014399]
[1770490572468,0.01162418,69539.0,69517.0,0.014397]
[1770490572659,0.01162418,69539.0,69518.0,0.00012744]
[1770490573367,0.01162418,69538.0,69518.0,0.00012744]
[1770490574061,0.01162418,69563.0,69519.0,0.00012744]
[1770490574268,0.01162418,69547.0,69523.0,0.01452344]
[1770490575659,0.01162418,69547.0,69535.0,0.0002]
[1770490575857,0.01162418,69547.0,69534.0,0.0002]
[1770490576262,0.02601834,69554.0,69534.0,0.0002]
[1770490576662,0.01157803,69553.0,69534.0,0.0002]
[1770490576868,0.01157803,69553.0,69533.0,0.0002]
[1770490577264,0.01157803,69553.0,69533.0,0.014594]
[1770490577765,0.01157803,69553.0,69533.0,0.01485988]
[1770490577965,0.01157803,69553.0,69537.0,0.0002]
[1770490578561,0.43035316,69582.0,69537.0,0.0002]
[1770490578562,0.01158798,69569.0,69538.0,0.00023603]
[1770490578769,0.01158798,69569.0,69550.0,0.01462603]
[1770490578971,0.01158798,69569.0,69548.0,0.0002]
[1770490579164,0.01158798,69567.0,69548.0,0.0002]
[1770490580067,0.01158798,69567.0,69543.0,0.014392]
[1770490580268,0.01158798,69567.0,69546.0,0.014391]
[1770490580466,0.014381,69596.0,69540.0,0.00043603]
[1770490580467,0.01159656,69580.0,69555.0,0.0002103]
[1770490581369,0.02598056,69580.0,69555.0,0.0002103]
[1770490581571,0.01159656,69579.0,69559.0,0.014388]
[1770490582471,0.01159656,69579.0,69559.0,0.014588]
[1770490583868,0.01158252,69576.0,69559.0,0.0002]
[1770490584172,0.01151586,69574.0,69547.0,0.014391]
[1770490584563,0.01151586,69574.0,69550.0,0.0002]
[1770490584871,0.01144858,69571.0,69547.0,0.014391]
[1770490585774,0.01144858,69571.0,69549.0,0.0002]
[1770490586072,0.01144858,69571.0,69553.0,0.01439]
[1770490586268,0.01144858,69571.0,69557.0,0.014389]
[1770490586574,0.01144858,69571.0,69554.0,0.014389]
[1770490586965,0.01142286,69597.0,69557.0,0.014389]
[1770490587365,0.01142286,69592.0,69557.0,0.014389]
[1770490587769,0.01142286,69582.0,69557.0,0.014389]
[1770490588072,0.014381,69598.0,69557.0,0.014389]
[1770490588073,0.01142286,69580.0,69557.0,0.014389]
[1770490590163,0.01142286,69580.0,69557.0,0.01500236]
[1770490590376,0.01146623,69578.0,69557.0,0.00061336]
[1770490590676,0.01146623,69573.0,69552.0,0.01459]
[1770490591067,0.01146623,69573.0,69555.0,0.014389]
[1770490591469,0.01146623,69573.0,69551.0,0.01439]
[1770490591673,0.01146623,69573.0,69551.0,0.01499128]
[1770490592972,0.01146623,69573.0,69554.0,0.014389]
[1770490593489,0.01146623,69573.0,69550.0,8.4e-05]
[1770490593869,0.01146623,69573.0,69549.0,0.0002]
[1770490594181,0.01246623,69573.0,69553.0,0.01439]
[1770490594986,0.001,69573.0,69548.0,0.0002]
[1770490595182,0.001,69573.0,69560.0,0.014388]
[1770490595688,0.01179704,69580.0,69556.0,0.014389]
[1770490595879,0.01179704,69580.0,69556.0,0.014589]
[1770490596186,0.01179704,69580.0,69558.0,0.014388]
[1770490602288,0.01179704,69580.0,69561.0,0.014388]
[1770490605387,0.01179704,69580.0,69554.0,0.0002]
[1770490605580,0.01179704,69580.0,69559.0,0.014388]
[1770490605779,0.01179704,69580.0,69561.0,0.014388]
[1770490605974,0.01179704,69580.0,69563.0,0.014387]
[1770490606183,0.01176396,69585.0,69563.0,0.014387]
[1770490606683,0.01174768,69583.0,69560.0,0.014388]
[1770490608390,0.01174768,69583.0,69560.0,0.01443571]
[1770490609593,0.01174768,69583.0,69562.0,0.014388]
[1770490609883,0.01174768,69583.0,69567.0,0.014387]
[1770490610088,0.01174768,69583.0,69564.0,0.014387]
[1770490610585,0.014383,69588.0,69558.0,0.0002]
[1770490610586,0.01166052,69588.0,69558.0,0.0002]
[1770490610785,0.01166052,69588.0,69555.0,0.014389]
[1770490611380,0.01166052,69588.0,69556.0,0.014389]
[1770490611680,0.014384,69582.0,69545.0,0.11370827]
[1770490611884,0.014384,69582.0,69544.0,0.014391]
[1770490611885,0.01166052,69581.0,69544.0,0.014391]
[1770490612492,0.01166052,69581.0,69545.0,6.234e-05]
[1770490612882,0.01164588,69558.0,69538.0,6.234e-05]
[1770490613081,0.01164588,69553.0,69536.0,0.0002]
[1770490613987,0.01164588,69553.0,69531.0,6.234e-05]
[1770490614782,0.01164588,69553.0,69532.0,0.014394]
[1770490615181,0.01164588,69553.0,69534.0,0.0002]
[1770490615786,0.02603588,69553.0,69534.0,0.0002]
[1770490616090,0.014385,69575.0,69534.0,0.0002]
[1770490616091,0.01439,69551.0,69534.0,0.0002]
[1770490616285,0.01157553,69550.0,69528.0,0.0002]
[1770490616691,0.01165187,69548.0,69528.0,0.0002]
[1770490617390,0.01165187,69544.0,69527.0,0.0002]
[1770490618192,0.014388,69561.0,69512.0,0.014398]
[1770490618193,0.0115852,69539.0,69512.0,0.014398]
[1770490618991,0.0115852,69539.0,69498.0,0.21168182]
[1770490618992,0.01154302,69525.0,69500.0,0.11350827]
[1770490619191,0.01154302,69520.0,69495.0,0.014402]
[1770490619387,0.01154302,69520.0,69506.0,0.0002]
[1770490619701,0.01154302,69520.0,69495.0,0.014402]
[1770490619995,0.01154302,69520.0,69505.0,0.0002]
[1770490620584,0.01154302,69520.0,69504.0,0.0002]
[1770490620988,0.01154302,69534.0,69505.0,0.00042791]
[1770490621186,0.01154302,69542.0,69512.0,0.00042791]
[1770490621386,0.01154302,69542.0,69504.0,0.0002]
[1770490621387,0.01154302,69542.0,69523.0,0.00042791]
[1770490621588,0.01154302,69539.0,69508.0,0.00042791]
[1770490621885,0.01154302,69544.0,69517.0,0.00042791]
[1770490622088,0.01154302,69538.0,69509.0,0.00042791]
[1770490622288,0.01154302,69533.0,69510.0,0.014398]
[1770490622491,0.01154302,69533.0,69510.0,0.01446125]
[1770490622693,0.01154302,69533.0,69512.0,0.01446125]
[1770490622893,0.01154302,69533.0,69516.0,0.014597]
[1770490623097,0.001,69534.0,69517.0,6.325e-05]
[1770490623791,0.01164558,69542.0,69517.0,6.325e-05]
[1770490624193,0.01164558,69542.0,69521.0,0.01445925]
[1770490624999,0.01164558,69542.0,69523.0,0.0002]
[1770490626190,0.01164558,69542.0,69521.0,6.325e-05]
[1770490626598,0.01164558,69542.0,69523.0,0.00156513]
[1770490631498,0.01164558,69542.0,69516.0,0.01542713]
[1770490631700,0.01164558,69542.0,69517.0,0.00103013]
[1770490632998,0.01120714,69540.0,69513.0,0.0002]
[1770490633301,0.01120714,69535.0,69513.0,0.0002]
[1770490634098,0.01120714,69535.0,69510.0,0.01577755]
[1770490634690,0.01120714,69535.0,69513.0,0.014398]
[1770490635094,0.01120714,69535.0,69518.0,0.0002]
[1770490635300,0.02560114,69535.0,69518.0,0.0002]
[1770490635502,0.01120155,69534.0,69518.0,0.0002]
[1770490636396,0.014394,69533.0,69513.0,0.0002]
[1770490636597,0.01125162,69530.0,69513.0,0.0002]
[1770490637501,0.01125162,69530.0,69511.0,0.00124512]
[1770490637799,0.01125162,69530.0,69514.0,0.014398]
[1770490638000,0.01125162,69530.0,69512.0,0.00124512]
[1770490638705,0.01125162,69530.0,69510.0,0.0002]
[1770490639700,0.01125162,69530.0,69509.0,0.014399]
[1770490639907,0.01125162,69530.0,69511.0,0.014398]
[1770490640602,0.01125162,69530.0,69513.0,0.014398]
[1770490640797,0.01125162,69530.0,69516.0,0.0002]
[1770490640990,0.01119416,69537.0,69517.0,0.0014175]
[1770490641197,0.01119416,69537.0,69516.0,0.0002]
[1770490641198,0.01119416,69544.0,69522.0,0.0014175]
[1770490641601,0.01119416,69543.0,69522.0,0.0014175]
[1770490642303,0.01119416,69543.0,69518.0,0.014397]
[1770490643004,0.01119416,69543.0,69522.0,0.0002]
[1770490643603,0.01119416,69543.0,69522.0,0.00161948]
[1770490643807,0.01119416,69543.0,69526.0,0.01581448]
[1770490645809,0.01119416,69543.0,69527.0,0.00164075]
[1770490646300,0.01119416,69543.0,69522.0,0.014396]
[1770490646708,0.01119416,69543.0,69525.0,0.014395]
[1770490647209,0.01119416,69543.0,69525.0,0.01603575]
[1770490647901,0.01119416,69543.0,69528.0,0.014395]
[1770490648107,0.01119416,69543.0,69526.0,0.00193589]
[1770490648407,0.01107977,69559.0,69533.0,0.014394]
[1770490648802,0.01107977,69559.0,69526.0,0.00213589]
[1770490649609,0.01107977,69559.0,69533.0,0.014394]
[1770490650413,0.01107977,69559.0,69529.0,0.00176066]
[1770490650597,0.01107977,69559.0,69538.0,0.014393]
[1770490651310,0.01107977,69559.0,69540.0,0.014392]
[1770490651702,0.01107977,69559.0,69535.0,0.00165504]
[1770490652606,0.0110929,69575.0,69558.0,0.014389]
[1770490653002,0.0110929,69575.0,69561.0,0.014388]
[1770490654009,0.0110929,69582.0,69561.0,0.014388]
[1770490654210,0.44473316,69602.0,69564.0,0.00172127]
[1770490654211,0.0110929,69596.0,69564.0,0.00172127]
[1770490655508,0.0110929,69596.0,69570.0,0.014386]
[1770490655915,0.01151952,69594.0,69570.0,0.014386]
[1770490656316,0.01151952,69594.0,69566.0,0.014387]
[1770490657522,0.01151952,69587.0,69553.0,0.00181557]
[1770490657812,0.01151952,69581.0,69557.0,0.014389]
[1770490658409,0.01151952,69581.0,69560.0,0.014388]
[1770490660618,0.01151952,69579.0,69552.0,0.01439]
[1770490660818,0.01151952,69578.0,69554.0,0.014389]
[1770490661218,0.01151952,69578.0,69544.0,0.00289034]
[1770490661517,0.01151952,69578.0,69553.0,0.01439]
[1770490662218,0.01251952,69578.0,69553.0,0.01439]
[1770490662818,0.01151952,69578.0,69553.0,0.01439]
[1770490665030,0.01151952,69578.0,69556.0,0.00246775]
[1770490665215,0.01151952,69578.0,69563.0,0.014388]
[1770490665517,0.50224116,69614.0,69554.0,0.014389]
[1770490665518,0.014382,69592.0,69554.0,0.014389]
[1770490665818,0.01151952,69591.0,69554.0,0.014389]
[1770490666023,0.01166666,69585.0,69539.0,0.014393]
[1770490666216,0.01166666,69582.0,69558.0,0.014389]
[1770490666416,0.01166666,69582.0,69553.0,8.778e-05]
[1770490666616,0.01166666,69582.0,69558.0,0.014388]
[1770490666818,0.01166666,69582.0,69561.0,0.014388]
[1770490667023,0.01166666,69582.0,69564.0,0.014387]
[1770490667224,0.01166666,69582.0,69548.0,0.014391]
[1770490667225,0.01166666,69582.0,69551.0,0.01439]
[1770490667920,0.01166666,69582.0,69563.0,0.014388]
[1770490669619,0.01161377,69579.0,69552.0,0.01454866]
[1770490669825,0.01161377,69577.0,69552.0,0.00015866]
[1770490670122,0.014386,69573.0,69547.0,0.014391]
[1770490670321,0.01161377,69572.0,69547.0,0.014391]
[1770490670921,0.01162263,69570.0,69545.0,0.00015866]
[1770490673022,0.014386,69569.0,69545.0,0.00015866]
[1770490673226,0.01167829,69568.0,69545.0,0.00015866]
[1770490674016,0.014383,69587.0,69526.0,0.0002]
[1770490674017,0.01167829,69561.0,69526.0,0.0002]
[1770490674221,0.01167829,69559.0,69526.0,0.0002]
[1770490674421,0.01169074,69557.0,69526.0,0.0002]
[1770490674625,0.01169074,69551.0,69527.0,0.014395]
[1770490675325,0.01169074,69550.0,69524.0,0.014396]
[1770490676028,0.01169074,69550.0,69530.0,0.014394]
[1770490676220,0.01169074,69550.0,69527.0,0.014395]
[1770490676425,0.01169074,69549.0,69524.0,0.014396]
[1770490676728,0.01169074,69549.0,69526.0,0.014395]
[1770490677131,0.01173493,69547.0,69523.0,0.014396]
[1770490677625,0.014391,69546.0,69522.0,0.0002]
[1770490677820,0.01173493,69545.0,69522.0,0.0002]
[1770490678017,0.01173493,69545.0,69519.0,0.014397]
[1770490679628,0.01173493,69545.0,69518.0,0.014597]
[1770490679828,0.01171721,69544.0,69518.0,0.014597]
[1770490680035,0.01171721,69536.0,69518.0,0.0002]
[1770490680231,0.01171721,69536.0,69515.0,0.014398]
[1770490680924,0.01171721,69536.0,69511.0,0.014398]
[1770490681422,0.01184631,69534.0,69512.0,0.0002]
[1770490681621,0.014394,69533.0,69512.0,0.0002]
[1770490681919,0.01184631,69528.0,69502.0,0.0144]
[1770490682525,0.01184631,69528.0,69503.0,0.0002]
[1770490682924,0.01184631,69528.0,69504.0,0.0144]
[1770490683124,0.01184631,69528.0,69503.0,0.0002]
[1770490683725,0.01184631,69528.0,69500.0,0.014401]
[1770490683928,0.014396,69525.0,69498.0,0.29212601]
[1770490684131,0.011834,69524.0,69499.0,0.014401]
[1770490684726,0.011834,69524.0,69500.0,0.0002]
[1770490684927,0.011834,69524.0,69501.0,0.0144]
[1770490685830,0.011834,69524.0,69501.0,0.0146]
[1770490686031,0.011834,69524.0,69504.0,0.0144]
[1770490686424,0.011834,69524.0,69500.0,0.0002]
[1770490686624,0.011834,69524.0,69491.0,0.28268123]
[1770490687033,0.011834,69524.0,69504.0,0.0002]
[1770490688138,0.011834,69524.0,69491.0,0.28288123]
[1770490688435,0.011834,69524.0,69499.0,0.014401]
[1770490688637,0.011834,69524.0,69502.0,0.0144]
[1770490689333,0.0117923,69533.0,69498.0,0.3079652]
[1770490689537,0.0117923,69533.0,69516.0,0.014397]
[1770490690537,0.0127923,69533.0,69516.0,0.014397]
[1770490690938,0.0127923,69533.0,69507.0,0.014399]
[1770490691236,0.01123187,69563.0,69538.0,0.01080015]
[1770490691436,0.01123187,69579.0,69553.0,0.01080015]
[1770490691639,0.01123187,69579.0,69561.0,0.014388]
[1770490692035,0.01123187,69579.0,69563.0,0.014388]
[1770490692230,0.01123187,69589.0,69565.0,0.014387]
[1770490692941,0.01123187,69589.0,69564.0,0.01080015]
[1770490693643,0.01123187,69589.0,69564.0,0.02518715]
[1770490693945,0.01123187,69597.0,69574.0,0.014385]
[1770490695542,0.01156064,69595.0,69565.0,0.00031807]
[1770490696442,0.01156064,69595.0,69572.0,0.014386]
[1770490699341,0.01156064,69595.0,69560.0,0.145162]
[1770490699342,0.01154486,69593.0,69567.0,0.00036539]
[1770490700332,0.01154486,69593.0,69568.0,0.014387]
[1770490700543,0.01154486,69593.0,69568.0,0.01481637]
[1770490701250,0.01152354,69588.0,69561.0,0.014388]
[1770490701438,0.01152354,69588.0,69559.0,0.00042937]
[1770490701739,0.01152354,69565.0,69540.0,0.0002]
[1770490702538,0.01152354,69565.0,69536.0,0.00042937]
[1770490703037,0.01152354,69565.0,69546.0,0.01480024]
[1770490703241,0.01152354,69565.0,69546.0,0.00040924]
[1770490705244,0.01152003,69575.0,69551.0,0.01439]
[1770490705642,0.01152003,69575.0,69547.0,0.01483088]
[1770490706143,0.01152003,69575.0,69550.0,0.01439]
[1770490709644,0.01152003,69575.0,69553.0,0.00048336]
[1770490710150,0.071899,69604.0,69561.0,0.014388]
[1770490710151,0.01150554,69587.0,69561.0,0.014388]
[1770490710447,0.01150554,69587.0,69562.0,0.00039727]
[1770490711350,0.014383,69586.0,69562.0,0.00039727]
[1770490711540,0.01153424,69585.0,69562.0,0.00039727]
[1770490711743,0.01153424,69585.0,69563.0,0.014388]
[1770490715747,0.01151249,69583.0,69559.0,0.014388]
[1770490715942,0.01151249,69583.0,69562.0,0.014388]
[1770490716247,0.01151249,69583.0,69555.0,0.0004625]
[1770490716742,0.01151249,69583.0,69560.0,0.014388]
[1770490718642,0.01151249,69583.0,69555.0,0.0004625]
[1770490718643,0.01151254,69581.0,69556.0,0.014389]
[1770490718842,0.01151254,69593.0,69558.0,0.00046236]
[1770490719043,0.01151254,69591.0,69566.0,0.00046236]
[1770490719344,0.01151254,69591.0,69568.0,0.00046236]
[1770490719852,0.01151254,69589.0,69568.0,0.00046236]
[1770490721050,0.01159433,69588.0,69554.0,0.00021699]
[1770490721550,0.01159433,69585.0,69558.0,0.00021699]
[1770490721752,0.01159433,69585.0,69559.0,0.01460499]
[1770490722045,0.01159433,69585.0,69562.0,0.014388]
[1770490722752,0.01159433,69585.0,69562.0,0.00026633]
[1770490724344,0.01159433,69585.0,69564.0,0.014387]
[1770490724544,0.01159433,69585.0,69562.0,0.00026633]
[1770490724748,0.01157276,69578.0,69545.0,0.0002817]
[1770490725155,0.01157276,69574.0,69545.0,0.0146727]
[1770490725455,0.01157276,69574.0,69548.0,0.014391]
[1770490726448,0.01157346,69572.0,69548.0,0.014391]
[1770490727150,0.014386,69571.0,69545.0,0.0002817]
[1770490727352,0.01157346,69570.0,69545.0,0.0002817]
[1770490727657,0.01157346,69570.0,69546.0,0.00027959]
[1770490728059,0.01157346,69570.0,69549.0,0.01439]
[1770490729154,0.01157346,69570.0,69547.0,0.014391]
[1770490731049,0.01157346,69570.0,69549.0,0.01439]
[1770490733449,0.0115743,69569.0,69537.0,0.00027707]